fUSD/lending_fUSD_20250526
["ID","MTS","AMOUNT","RATE_DAILY","PERIOD"]
[362383407,1748239832416,-255.55,0.00018769,2]
[362383410,1748239832425,-1200.0,0.00018769,2]
[362383413,1748239832435,-255.55,0.00018774,2]
[362383415,1748239832444,-255.55,0.00018778,2]
[362383418,1748239832454,-500.0,0.000188,2]
[362383420,1748239832464,-398.48089186,0.000188,2]
[362383422,1748239832473,-500.0,0.000188,2]
[362383424,1748239832483,-1167.7,0.00018887,2]
[362383426,1748239832493,-23900.0,0.00018893,2]
[362383428,1748239832503,-158.58057794,0.000189,2]
[362383430,1748239832512,-271.0999,0.000189,2]
[362383432,1748239832521,-239.33028795,0.000189,2]
[362383434,1748239832531,-166.61,0.00018914,2]
[362383436,1748239832540,-250.0,0.00018939,2]
[362383438,1748239832551,-151.0,0.00018999,2]
[362383440,1748239832561,-16.11191664,0.00018999,2]
[362383442,1748239832573,-191.28808336,0.00018999,2]
[362383444,1748239832582,-3228.36256828,0.00019,5]
[362383446,1748239832594,-5815.8820303,0.00019,5]
[362383447,1748239837605,-4563.02255,0.00019,5]
[362383448,1748239837664,-45987.58698707,0.00019,5]
[362383449,1748239837675,-350.0,0.00019,2]
[362383450,1748239837685,-1000.0,0.00019091,2]
[362383451,1748239837699,-500.0,0.00019164,2]
[362383452,1748239837709,-157.366603,0.00019178,2]
[362383453,1748239837719,-158.279817,0.00019178,2]
[362383454,1748239837729,-158.595064,0.00019178,2]
[362383455,1748239837738,-158.279817,0.00019178,2]
[362383456,1748239837748,-157.823209,0.00019178,2]
[362383457,1748239837757,-158.279818,0.00019178,2]
[362383458,1748239837767,-160.138773,0.00019178,2]
[362383459,1748239837778,-156.692744,0.00019178,2]
[362383460,1748239837787,-1000.0,0.00019348,2]
[362383461,1748239837799,-1000.0,0.00019348,2]
[362383462,1748239837810,-150.0,0.00019425,7]
[362383463,1748239837820,-239.33028785,0.00019452,2]
[362383464,1748239837831,-250.0,0.00019562,2]
[362383465,1748239837840,-250.0,0.00019562,2]
[362383466,1748239837851,-250.0,0.00019562,2]
[362383467,1748239837860,-166.12,0.00019586,2]
[362383468,1748239837870,-320.930601,0.00019599,2]
[362383469,1748239837880,-6920.0,0.00019617,2]
[362383470,1748239837889,-154.0,0.00019617,2]
[362383471,1748239837898,-4129.32,0.00019617,2]
[362383472,1748239837908,-885.255,0.00019617,2]
[362383473,1748239837917,-240.0,0.00019631,2]
[362383474,1748239837927,-158.279817,0.00019726,2]
[362383475,1748239837936,-417.85360563,0.00019796,2]
[362383476,1748239837946,-417.85360562,0.00019808,2]
[362383477,1748239837955,-417.85360562,0.00019819,2]
[362383478,1748239837965,-417.85360562,0.00019831,2]
[362383479,1748239837974,-200.0,0.0001984,2]
[362383480,1748239837985,-417.85360562,0.00019842,2]
[362383481,1748239837994,-417.85360562,0.00019854,2]
[362383482,1748239838004,-417.85360562,0.00019865,2]
[362383483,1748239838013,-417.85360562,0.00019877,2]
[362383484,1748239838023,-114474.707349,0.0001988,2]
[362383485,1748239838032,-417.85360562,0.00019888,2]
[362383486,1748239838041,-1500.0,0.00019896,2]
[362383487,1748239838050,-1500.0,0.00019896,2]
[362383488,1748239838061,-500.0,0.00019899,2]
[362383489,1748239838070,-448.26066792,0.00019899,2]
[362383490,1748239838082,-569.25791759,0.00019899,2]
[362383491,1748239838096,-210.46197781,0.00019899,2]
[362383492,1748239838106,-420.0,0.00019899,2]
[362383493,1748239838115,-420.0,0.00019899,2]
[362383494,1748239838125,-420.0,0.00019899,2]
[362383495,1748239838134,-500.0,0.00019899,2]
[362383496,1748239838144,-468.76376098,0.00019899,2]
[362383497,1748239838153,-239.50541061,0.00019899,2]
[362383498,1748239838162,-190.59364237,0.00019899,2]
[362383499,1748239838171,-500.0,0.00019899,2]
[362383500,1748239838181,-500.0,0.00019899,2]
[362383501,1748239838191,-500.0,0.00019899,2]
[362383502,1748239838200,-500.0,0.00019899,2]
[362383503,1748239838210,-30000.0,0.000199,2]
[362383504,1748239838219,-80320.93310907,0.000199,2]
[362383505,1748239838228,-2840.8,0.000199,2]
[362383506,1748239838237,-712.60803792,0.000199,2]
[362383507,1748239838247,-417.85360562,0.000199,2]
[362383508,1748239838256,-158.595064,0.00019921,2]
[362383509,1748239838266,-837.712,0.00019944,2]
[362383510,1748239838275,-500.0,0.00019973,2]
[362383511,1748239838284,-500.0,0.00019973,2]
[362383512,1748239838294,-500.0,0.00019973,2]
[362383513,1748239838303,-500.0,0.00019973,2]
[362383514,1748239838313,-500.0,0.00019973,2]
[362383515,1748239838322,-511.45224705,0.00019973,2]
[362383516,1748239838331,-500.0,0.00019973,2]
[362383517,1748239838341,-500.0,0.00019973,2]
[362383518,1748239838351,-428.03908422,0.00019973,2]
[362383519,1748239840083,-845.0,0.00019617,2]
[362383520,1748239840093,-71.96091578,0.00019973,2]
[362383521,1748239840103,-500.0,0.0001998,2]
[362383522,1748239840112,-499.98,0.0001998,2]
[362383523,1748239840121,-499.99,0.0001998,2]
[362383524,1748239840131,-158.279817,0.00019989,2]
[362383525,1748239840140,-297.07502078,0.0001999,2]
[362383526,1748239840149,-297.07502078,0.0001999,2]
[362383527,1748239840158,-297.07502078,0.0001999,2]
[362383528,1748239840170,-157.366603,0.00019993,2]
[362383529,1748239840181,-158.279817,0.00019993,2]
[362383530,1748239840194,-157.823209,0.00019993,2]
[362383531,1748239840207,-158.279817,0.00019997,2]
[362383532,1748239840219,-158.595064,0.00019998,2]
[362383533,1748239840231,-548.12604793,0.00019999,2]
[362383534,1748239840242,-1003.6354,0.00019999,2]
[362383535,1748239840253,-158.279817,0.00019999,2]
[362383536,1748239840265,-420.0,0.00019999,2]
[362383537,1748239840278,-342.86911917,0.00019999,2]
[362383538,1748239840289,-420.0,0.00019999,2]
[362383539,1748239840301,-420.0,0.00019999,2]
[362383540,1748239840312,-164.21677986,0.00019999,2]
[362383541,1748239840325,-420.0,0.00019999,2]
[362383542,1748239840337,-443.44922869,0.00019999,2]
[362383543,1748239840349,-290.7,0.00019999,2]
[362383544,1748239840360,-263.59798469,0.00019999,2]
[362383545,1748239840371,-411.81452674,0.00019999,2]
[362383546,1748239840382,-420.0,0.00019999,2]
[362383547,1748239840393,-420.0,0.00019999,2]
[362383548,1748239840403,-420.0,0.00019999,2]
[362383549,1748239840414,-420.0,0.00019999,2]
[362383550,1748239840426,-420.0,0.00019999,2]
[362383551,1748239840438,-420.0,0.00019999,2]
[362383552,1748239840451,-420.0,0.00019999,2]
[362383553,1748239840462,-425.54716039,0.00019999,2]
[362383555,1748239840473,-420.0,0.00019999,2]
[362383556,1748239840485,-420.0,0.00019999,2]
[362383557,1748239840496,-420.0,0.00019999,2]
[362383558,1748239840508,-420.0,0.00019999,2]
[362383559,1748239840520,-420.0,0.00019999,2]
[362383560,1748239840531,-381.57400027,0.00019999,2]
[362383561,1748239840542,-436.96833602,0.00019999,2]
[362383562,1748239840554,-432.98333033,0.00019999,2]
[362383563,1748239840566,-448.26639161,0.00019999,2]
[362383564,1748239840577,-449.91434779,0.00019999,2]
[362383565,1748239840588,-430.94847076,0.00019999,2]
[362383566,1748239840600,-420.0,0.00019999,2]
[362383567,1748239840611,-430.35623554,0.00019999,2]
[362383568,1748239840623,-420.0,0.00019999,2]
[362383569,1748239840633,-150.0,0.00019999,2]
[362383570,1748239840644,-420.0,0.00019999,2]
[362383571,1748239840656,-420.0,0.00019999,2]
[362383572,1748239840667,-420.0,0.00019999,2]
[362383573,1748239840680,-420.0,0.00019999,2]
[362383574,1748239840691,-420.0,0.00019999,2]
[362383575,1748239840702,-420.0,0.00019999,2]
[362383576,1748239840713,-503.7635892,0.00019999,2]
[362383577,1748239840726,-150.0,0.00019999,2]
[362383578,1748239840738,-420.0,0.00019999,2]
[362383579,1748239840748,-436.05417063,0.00019999,2]
[362383580,1748239840758,-441.26369032,0.00019999,2]
[362383581,1748239840769,-420.0,0.00019999,2]
[362383582,1748239840779,-420.0,0.00019999,2]
[362383583,1748239840792,-460.72516754,0.00019999,2]
[362383584,1748239840810,-420.0,0.00019999,2]
[362383585,1748239840821,-424.70035031,0.00019999,2]
[362383586,1748239840831,-433.72059028,0.00019999,2]
[362383587,1748239840841,-450.63840925,0.00019999,2]
[362383588,1748239840851,-420.0,0.00019999,2]
[362383589,1748239840862,-428.08920239,0.00019999,2]
[362383590,1748239840872,-432.3573644,0.00019999,2]
[362383591,1748239840884,-427.75861846,0.00019999,2]
[362383592,1748239840897,-441.57861787,0.00019999,2]
[362383593,1748239840908,-435.41877038,0.00019999,2]
[362383594,1748239840919,-432.42816972,0.00019999,2]
[362383595,1748239840930,-456.35941997,0.00019999,2]
[362383596,1748239840941,-420.0,0.00019999,2]
[362383597,1748239840951,-420.0,0.00019999,2]
[362383598,1748239840961,-440.51243059,0.00019999,2]
[362383599,1748239840971,-420.0,0.00019999,2]
[362383600,1748239840982,-420.0,0.00019999,2]
[362383601,1748239840992,-420.0,0.00019999,2]
[362383602,1748239841003,-420.0,0.00019999,2]
[362383603,1748239841016,-420.0,0.00019999,2]
[362383604,1748239841027,-561.78950863,0.00019999,2]
[362383605,1748239841038,-420.0,0.00019999,2]
[362383606,1748239841049,-518.62,0.00019999,2]
[362383607,1748239841060,-500.0,0.00019999,2]
[362383608,1748239841071,-494.81019021,0.00019999,2]
[362383609,1748239841082,-420.0,0.00019999,2]
[362383610,1748239841093,-437.08309874,0.00019999,2]
[362383611,1748239841105,-294.39472862,0.00019999,2]
[362383612,1748239841116,-472.73,0.00019999,2]
[362383613,1748239841127,-500.0,0.00019999,2]
[362383614,1748239841137,-500.0,0.00019999,2]
[362383615,1748239841148,-500.0,0.00019999,2]
[362383616,1748239841159,-500.0,0.00019999,2]
[362383617,1748239841169,-500.0,0.00019999,2]
[362383618,1748239841180,-500.0,0.00019999,2]
[362383619,1748239841191,-174.05282742,0.00019999,2]
[362383620,1748239841202,-420.0,0.00019999,2]
[362383621,1748239841213,-420.0,0.00019999,2]
[362383622,1748239841224,-420.0,0.00019999,2]
[362383623,1748239841235,-420.0,0.00019999,2]
[362383624,1748239841245,-420.0,0.00019999,2]
[362383625,1748239841256,-460.24522057,0.00019999,2]
[362383626,1748239841268,-420.0,0.00019999,2]
[362383627,1748239841278,-420.0,0.00019999,2]
[362383628,1748239841289,-420.0,0.00019999,2]
[362383629,1748239841300,-422.63850911,0.00019999,2]
[362383630,1748239841312,-1577.0,0.00019999,2]
[362383631,1748239841323,-279.71252306,0.0002,2]
[362383632,1748239841334,-398253.3861347,0.0002,2]
[362383633,1748239841345,-4543.99489799,0.0002,2]
[362383634,1748239841355,-2005.95120938,0.0002,2]
[362383635,1748239841366,-2006.02,0.0002,2]
[362383636,1748239841377,-150.0,0.0002,2]
[362383637,1748239841388,-571.0148464,0.0002,2]
[362383638,1748239841399,-36368.5,0.0002,2]
[362383639,1748239841410,-210.0,0.0002,2]
[362383640,1748239841420,-210.0,0.0002,2]
[362383641,1748239841431,-210.0,0.0002,2]
[362383642,1748239841442,-210.0,0.0002,2]
[362383643,1748239841453,-210.0,0.0002,2]
[362383644,1748239841463,-210.0,0.0002,2]
[362383645,1748239841474,-210.0,0.0002,2]
[362383646,1748239841485,-208.0,0.0002,2]
[362383647,1748239841496,-208.0,0.0002,2]
[362383648,1748239841507,-208.0,0.0002,2]
[362383649,1748239841517,-208.0,0.0002,2]
[362383650,1748239841528,-208.0,0.0002,2]
[362383651,1748239841539,-208.0,0.0002,2]
[362383652,1748239841550,-208.0,0.0002,2]
[362383653,1748239841560,-286350.76947531,0.0002,2]
[362383654,1748239841580,-820.18670686,0.0002,2]
[362383655,1748239841598,-54784.73000001,0.0002,2]
[362383656,1748239841881,208.0,0.00016783,2]
[362383669,1748239846352,-16037.42257273,0.0002,2]
[362383670,1748239846458,-99895.27255009,0.0002,2]
[362383671,1748240198441,150.0,0.000175,5]
[362383672,1748240440143,267.8,0.00013699,2]
[362383673,1748240598602,250.0,0.00015,2]
[362383674,1748240599661,300.0,0.00017,2]
[362383675,1748240754110,3456.83394729,6.94e-05,2]
[362383676,1748240848499,-200.0,0.00018591,2]
[362383677,1748240858202,155.0,0.00023,30]
[362383678,1748240875251,468.90261799,0.00015,2]
[362383679,1748240891400,1490.3197159,0.0001439,2]
[362383680,1748240911855,3663.80215293,0.000149,2]
[362383683,1748240976561,955.56,0.00016665,2]
[362383687,1748241031759,-208.0,0.00018585,2]
[362383688,1748241031769,-300.0,0.00018591,2]
[362383689,1748241031779,-808.37994642,0.00018591,2]
[362383690,1748241031791,-391.62005358,0.00018591,2]
[362383691,1748241031801,-300.0,0.00018591,2]
[362383692,1748241031811,-20489.44,0.00018592,2]
[362383693,1748241031821,-167.17,0.00018597,2]
[362383694,1748241031831,-583.85,0.00018621,2]
[362383695,1748241031840,-300.0,0.0001863,2]
[362383696,1748241031851,-286.55,0.00018682,2]
[362383697,1748241031860,-1037.21455133,0.0001872,2]
[362383698,1748241031871,-442.5951626,0.000189,3]
[362383699,1748241031882,-1745.83036407,0.000189,3]
[362383700,1748241031893,-109.45836712,0.000189,3]
[362383701,1748241031905,-231.62770395,0.000189,2]
[362383702,1748241031915,-955.56,0.00018929,2]
[362383703,1748241031924,-207.4,0.00018999,2]
[362383704,1748241031934,-350.0,0.00019,2]
[362383705,1748241031945,-1000.0,0.00019037,2]
[362383706,1748241031955,-166.63,0.00019053,2]
[362383707,1748241031964,-250.0,0.00019108,2]
[362383708,1748241031974,-500.0,0.00019164,2]
[362383709,1748241031983,-158.129163,0.00019178,2]
[362383710,1748241031992,-158.595067,0.00019178,2]
[362383711,1748241032002,-3310.84258669,0.00019204,2]
[362383712,1748241032011,-151.0,0.00019212,2]
[362383713,1748241032021,-250.0,0.00019293,2]
[362383714,1748241032030,-231.62770388,0.00019452,2]
[362383715,1748241032040,-300.0,0.00019578,2]
[362383716,1748241032050,-460.13,0.00019589,2]
[362383717,1748241032060,-288.837541,0.00019599,2]
[362383718,1748241032069,-5562.0,0.000197,5]
[362383719,1748241032079,-158.129163,0.00019726,2]
[362383720,1748241032088,-4280.5351091,0.000198,2]
[362383721,1748241032101,-500.0,0.000198,2]
[362383722,1748241032119,-400.0,0.000198,2]
[362383723,1748241032130,-919.3999996,0.000198,2]
[362383748,1748241039889,-151.0,0.00019568,2]
[362383749,1748241039900,-3277.6646913,0.000198,2]
[362383750,1748241039909,-3966.68904462,0.0001987,2]
[362383751,1748241039919,-158.129163,0.00019899,2]
[362383752,1748241039928,-3009.85142126,0.000199,2]
[362383753,1748241039938,-162.19272833,0.000199,2]
[362383754,1748241039948,-152.22144656,0.000199,2]
[362383755,1748241039957,-475.07202528,0.000199,2]
[362383756,1748241039966,-3095.89225182,0.000199,2]
[362383757,1748241039975,-1260.214,0.00019944,2]
[362383758,1748241039985,-183.023,0.00019944,2]
[362383759,1748241039994,-435.54980128,0.00019973,2]
[362383760,1748241040003,-500.0,0.00019973,2]
[362383761,1748241040012,-276.97222589,0.00019973,2]
[362383762,1748241040022,-499.98,0.0001998,2]
[362383763,1748241040031,-499.97,0.0001998,2]
[362383764,1748241040040,-499.99,0.0001998,2]
[362383765,1748241040050,-240.0,0.00019985,2]
[362383766,1748241040059,-100884.62114164,0.0001999,2]
[362383767,1748241040068,-8799.91121447,0.0001999,2]
[362383768,1748241040078,-297.07502078,0.0001999,2]
[362383769,1748241040087,-297.07502078,0.0001999,2]
[362383770,1748241040096,-297.07502078,0.0001999,2]
[362383771,1748241040107,-158.129163,0.00019992,2]
[362383772,1748241040119,-158.129163,0.00019994,2]
[362383773,1748241040128,-158.129163,0.00019999,2]
[362383774,1748241040137,-158.129163,0.00019999,2]
[362383775,1748241040146,-420.0,0.00019999,2]
[362383776,1748241040158,-420.0,0.00019999,2]
[362383777,1748241040169,-420.0,0.00019999,2]
[362383778,1748241040178,-164.21677986,0.00019999,2]
[362383779,1748241040188,-342.86911917,0.00019999,2]
[362383780,1748241040199,-548.12604793,0.00019999,2]
[362383781,1748241040209,-420.0,0.00019999,2]
[362383782,1748241040219,-443.44922869,0.00019999,2]
[362383783,1748241040230,-331.47660987,0.00019999,2]
[362383784,1748241040239,-290.7,0.00019999,2]
[362383785,1748241040248,-263.59798469,0.00019999,2]
[362383786,1748241040257,-420.0,0.00019999,2]
[362383787,1748241040267,-420.0,0.00019999,2]
[362383788,1748241040277,-420.0,0.00019999,2]
[362383789,1748241040287,-420.0,0.00019999,2]
[362383790,1748241040297,-420.0,0.00019999,2]
[362383791,1748241040308,-420.0,0.00019999,2]
[362383792,1748241040319,-420.0,0.00019999,2]
[362383793,1748241040329,-420.0,0.00019999,2]
[362383794,1748241040338,-420.0,0.00019999,2]
[362383795,1748241040347,-420.0,0.00019999,2]
[362383796,1748241040357,-420.0,0.00019999,2]
[362383797,1748241040367,-420.0,0.00019999,2]
[362383798,1748241040377,-420.0,0.00019999,2]
[362383799,1748241040387,-519.18547977,0.00019999,2]
[362383800,1748241040395,-420.0,0.00019999,2]
[362383802,1748241040405,-420.0,0.00019999,2]
[362383804,1748241040414,-420.0,0.00019999,2]
[362383806,1748241040423,-420.0,0.00019999,2]
[362383807,1748241040434,-420.0,0.00019999,2]
[362383808,1748241040443,-420.0,0.00019999,2]
[362383809,1748241040454,-420.0,0.00019999,2]
[362383811,1748241040464,-420.0,0.00019999,2]
[362383813,1748241040473,-420.0,0.00019999,2]
[362383815,1748241040482,-420.0,0.00019999,2]
[362383817,1748241040491,-420.0,0.00019999,2]
[362383818,1748241040500,-420.0,0.00019999,2]
[362383819,1748241040509,-381.57400027,0.00019999,2]
[362383820,1748241040519,-425.54716039,0.00019999,2]
[362383821,1748241040528,-436.96833602,0.00019999,2]
[362383822,1748241040537,-432.98333033,0.00019999,2]
[362383823,1748241040547,-448.26639161,0.00019999,2]
[362383824,1748241040556,-411.81452674,0.00019999,2]
[362383825,1748241040565,-449.91434779,0.00019999,2]
[362383826,1748241040576,-430.94847076,0.00019999,2]
[362383827,1748241040586,-430.35623554,0.00019999,2]
[362383828,1748241040596,-420.0,0.00019999,2]
[362383829,1748241040606,-441.26369032,0.00019999,2]
[362383830,1748241040615,-420.0,0.00019999,2]
[362383831,1748241040626,-420.0,0.00019999,2]
[362383832,1748241040635,-420.0,0.00019999,2]
[362383833,1748241040645,-460.72516754,0.00019999,2]
[362383834,1748241040655,-433.72059028,0.00019999,2]
[362383835,1748241040665,-420.0,0.00019999,2]
[362383836,1748241040675,-436.05417063,0.00019999,2]
[362383837,1748241040685,-420.0,0.00019999,2]
[362383838,1748241040695,-420.0,0.00019999,2]
[362383839,1748241040705,-424.70035031,0.00019999,2]
[362383840,1748241040715,-450.63840925,0.00019999,2]
[362383841,1748241040724,-420.0,0.00019999,2]
[362383842,1748241040733,-456.35941997,0.00019999,2]
[362383843,1748241040743,-428.08920239,0.00019999,2]
[362383844,1748241040752,-432.3573644,0.00019999,2]
[362383845,1748241040762,-427.75861846,0.00019999,2]
[362383846,1748241040772,-441.57861787,0.00019999,2]
[362383847,1748241040782,-420.0,0.00019999,2]
[362383848,1748241040791,-420.0,0.00019999,2]
[362383849,1748241040801,-420.0,0.00019999,2]
[362383850,1748241040811,-420.0,0.00019999,2]
[362383851,1748241040821,-420.0,0.00019999,2]
[362383852,1748241040831,-435.41877038,0.00019999,2]
[362383853,1748241040840,-518.62,0.00019999,2]
[362383854,1748241040850,-432.42816972,0.00019999,2]
[362383855,1748241040861,-420.0,0.00019999,2]
[362383856,1748241040870,-420.0,0.00019999,2]
[362383857,1748241040880,-440.51243059,0.00019999,2]
[362383858,1748241040890,-420.0,0.00019999,2]
[362383859,1748241040900,-420.0,0.00019999,2]
[362383860,1748241040910,-561.78950863,0.00019999,2]
[362383861,1748241040920,-500.0,0.00019999,2]
[362383862,1748241040930,-494.81019021,0.00019999,2]
[362383863,1748241040939,-437.08309874,0.00019999,2]
[362383864,1748241040950,-472.73,0.00019999,2]
[362383865,1748241040960,-500.0,0.00019999,2]
[362383866,1748241040971,-500.0,0.00019999,2]
[362383867,1748241040981,-500.0,0.00019999,2]
[362383868,1748241040991,-500.0,0.00019999,2]
[362383869,1748241041000,-500.0,0.00019999,2]
[362383870,1748241041009,-500.0,0.00019999,2]
[362383871,1748241041018,-174.05282742,0.00019999,2]
[362383872,1748241041027,-8271.24690171,0.00019999,2]
[362383873,1748241041037,-500.0,0.00019999,2]
[362383874,1748241041046,-500.0,0.00019999,2]
[362383875,1748241041056,-294.39472862,0.00019999,2]
[362383876,1748241041065,-201.280589,0.00019999,2]
[362383877,1748241041074,-420.0,0.00019999,2]
[362383878,1748241041083,-420.0,0.00019999,2]
[362383879,1748241041093,-422.63850911,0.00019999,2]
[362383880,1748241041102,-150.0,0.00019999,2]
[362383881,1748241041116,-420.0,0.00019999,2]
[362383882,1748241041125,-420.0,0.00019999,2]
[362383883,1748241041139,-420.0,0.00019999,2]
[362383884,1748241041151,-420.0,0.00019999,2]
[362383885,1748241041164,-420.0,0.00019999,2]
[362383886,1748241041176,-460.24522057,0.00019999,2]
[362383887,1748241041188,-420.0,0.00019999,2]
[362383888,1748241041199,-420.0,0.00019999,2]
[362383889,1748241041209,-420.0,0.00019999,2]
[362383890,1748241041220,-420.0,0.00019999,2]
[362383891,1748241041232,-420.0,0.00019999,2]
[362383892,1748241041244,-420.0,0.00019999,2]
[362383893,1748241041256,-420.0,0.00019999,2]
[362383894,1748241041268,-235.32244851,0.00019999,2]
[362383895,1748241041280,-500.0,0.00019999,2]
[362383896,1748241041291,-328.13463268,0.00019999,2]
[362383897,1748241041304,-500.0,0.00019999,2]
[362383898,1748241041315,-500.0,0.00019999,2]
[362383899,1748241041327,-417.65378743,0.00019999,2]
[362383900,1748241041339,-1577.0,0.00019999,2]
[362383901,1748241041350,-279.71252306,0.0002,2]
[362383902,1748241041360,-405361.24586219,0.0002,2]
[362383903,1748241041371,-4000.0,0.0002,4]
[362383904,1748241041384,-4000.0,0.0002,4]
[362383905,1748241041396,-4000.0,0.0002,4]
[362383906,1748241041407,-4000.0,0.0002,4]
[362383907,1748241041419,-4000.0,0.0002,4]
[362383908,1748241041432,-4000.0,0.0002,4]
[362383909,1748241041444,-160304.86349415,0.0002,2]
[362383926,1748241045880,-2445.34052458,0.000198,2]
[362383927,1748241045891,-836.994,0.0001998,2]
[362383928,1748241045902,-3059.96547542,0.0002,2]
[362383934,1748241270239,600.0,0.00027,120]
[362383936,1748241323604,610.0,0.00027,120]
[362383942,1748241504759,254.41,0.00013699,2]
[362383947,1748241763025,1985469.16187624,0.00027397,120]
[362383949,1748241794543,-2250.0,0.0002304,30]
[362383952,1748241884591,168.97,0.000248,120]
[362383953,1748241934719,288.77319,0.00023,30]
[362383955,1748242124067,887.99,0.00016922,2]
[362383956,1748242155572,150.0,0.0001701,2]
[362383957,1748242203868,3333.37079256,0.00025999,120]
[362383960,1748242231949,-168.97,0.000186,2]
[362383961,1748242231959,-291.92,0.00018661,2]
[362383962,1748242231969,-1000.0,0.00018687,2]
[362383963,1748242231979,-167.17,0.00018824,2]
[362383964,1748242231990,-207.4,0.00018999,2]
[362383965,1748242231999,-1180.68670325,0.00019,2]
[362383966,1748242232009,-200.0,0.00019082,2]
[362383967,1748242232019,-158.129163,0.00019178,2]
[362383968,1748242232029,-887.99,0.00019186,2]
[362383969,1748242232038,-500.0,0.00019204,2]
[362383970,1748242232047,-1967.81,0.000193,2]
[362383971,1748242232057,-446.0,0.00019425,2]
[362383972,1748242232066,-150.49,0.000195,2]
[362383973,1748242232076,-367.36,0.000195,2]
[362383974,1748242232086,-151.0,0.00019588,2]
[362383975,1748242232095,-460.13,0.00019589,2]
[362383976,1748242232105,-151.0,0.00019594,2]
[362383977,1748242232114,-1200.0,0.00019598,2]
[362383978,1748242232124,-279.142698,0.00019599,2]
[362383979,1748242232134,-151.0,0.00019608,2]
[362383980,1748242232143,-300.0,0.00019725,2]
[362383981,1748242232153,-906.62,0.00019726,2]
[362383982,1748242232163,-849.5,0.00019726,2]
[362383983,1748242232172,-150.0,0.00019726,2]
[362383984,1748242232182,-1271.78,0.00019726,2]
[362383985,1748242232192,-300.89,0.00019726,2]
[362383986,1748242232203,-151.0,0.00019788,2]
[362383987,1748242232213,-460.42930309,0.00019788,2]
[362383988,1748242232223,-693.3919763,0.00019788,2]
[362383989,1748242232232,-8601.08167974,0.000198,2]
[362383990,1748242232242,-537.0,0.00019898,2]
[362383991,1748242232252,-1000.0,0.00019899,2]
[362383992,1748242232261,-460.6851,0.00019899,2]
[362383993,1748242232271,-6290.7574,0.000199,2]
[362383994,1748242232280,-167.79948344,0.000199,2]
[362383995,1748242232291,-438.00329021,0.000199,2]
[362383996,1748242232301,-5141.42216138,0.000199,2]
[362383997,1748242232311,-3380.95817576,0.000199,2]
[362383999,1748242232320,-216.60638088,0.000199,2]
[362384001,1748242232330,-216.18585709,0.000199,2]
[362384002,1748242232339,-500.0,0.0001995,2]
[362384004,1748242232349,-500.0,0.0001995,2]
[362384006,1748242232358,-298.6416272,0.0001995,2]
[362384008,1748242232368,-17061.63643593,0.00019951,2]
[362384009,1748242232377,-1008.171,0.00019961,2]
[362384010,1748242232387,-183.02322995,0.00019961,2]
[362384011,1748242232397,-501.06856468,0.00019973,2]
[362384012,1748242232407,-500.0,0.00019973,2]
[362384013,1748242232417,-502.7761219,0.00019973,2]
[362384014,1748242232427,-500.0,0.00019973,2]
[362384015,1748242232437,-449.13854946,0.00019973,2]
[362384016,1748242232448,-500.50526181,0.00019973,2]
[362384017,1748242232457,-201.280589,0.00019973,2]
[362384019,1748242232467,-150.0,0.00019973,2]